bitfinex-derivatives/quotes_ETHF0:USTF0_20250123
["timestamp","ask_amount","ask_price","bid_price","bid_amount"]
[1737651219738,2.19065301,3258.7,3258.0,3.2078]
[1737651219939,0.2877682,3258.7,3258.6,0.6136]
[1737651220249,0.57549255,3259.2,3258.1,1.0203]
[1737651220545,0.61351,3259.1,3258.9,0.61354]
[1737651220750,0.57549255,3259.2,3258.4,3.2078]
[1737651221054,0.9012582,3259.2,3258.4,3.2078]
[1737651221258,0.2877682,3259.2,3259.1,0.61351]
[1737651221647,9.80150789,3259.2,3258.5,1.0404]
[1737651221847,9.80150789,3259.2,3259.1,0.61351]
[1737651222049,9.80144265,3259.2,3259.1,0.61351]
[1737651222256,9.80144265,3259.2,3259.0,0.61352]
[1737651222257,9.51373969,3259.2,3259.0,0.61352]
[1737651222550,9.51373969,3259.2,3258.8,3.2078]
[1737651222756,9.51373969,3259.2,3259.1,0.61351]
[1737651223149,9.51373969,3259.2,3259.1,5.61351]
[1737651223954,9.51373969,3259.2,3259.1,0.61351]
[1737651224252,0.61351,3259.1,3258.8,3.2078]
[1737651224452,9.51373969,3259.2,3258.8,3.2078]
[1737651224652,9.51373969,3259.2,3258.8,3.82136]
[1737651224952,9.51373969,3259.2,3258.8,3.2078]
[1737651225852,9.51373969,3259.2,3259.1,0.61351]
[1737651226559,8.30758608,3260.0,3258.8,3.2078]
[1737651226957,0.61343,3259.6,3259.0,0.61812773]
[1737651227253,4.03453427,3259.8,3259.0,0.61812773]
[1737651227254,0.61343,3259.5,3259.0,0.61812773]
[1737651227455,0.61343,3259.5,3259.0,0.00460773]
[1737651227649,0.61346,3259.4,3259.0,0.00460773]
[1737651227965,0.6135,3259.2,3259.0,0.00460773]
[1737651228252,0.61351,3259.1,3259.0,0.00460773]
[1737651228856,1.59512938,3259.2,3259.0,0.00460773]
[1737651229155,0.61351,3259.1,3259.0,0.00460773]
[1737651229364,1.92088384,3259.2,3259.0,0.00460773]
[1737651229553,0.61351,3259.1,3259.0,0.00460773]
[1737651230059,3.98078822,3259.1,3257.5,6.55178255]
[1737651230356,3.98078822,3259.1,3256.8,42.33482]
[1737651230357,0.61365,3258.4,3257.8,0.61375]
[1737651230753,3.82149,3258.2,3257.6,1.69797]
[1737651231058,0.61374,3257.9,3257.2,0.61385]
[1737651231361,3.2078,3258.2,3257.6,0.00460773]
[1737651231362,0.61371,3258.1,3257.6,0.00460773]
[1737651231546,0.00460773,3258.2,3258.0,0.61371]
[1737651231749,0.00460773,3258.2,3258.1,0.61369]
[1737651231951,0.00460773,3258.2,3258.0,0.61371]
[1737651232151,0.00460773,3258.2,3258.1,0.61369]
[1737651232355,0.00460773,3258.2,3257.6,0.00460773]
[1737651232956,0.00460773,3258.2,3258.0,0.61371]
[1737651233157,0.00460773,3258.2,3257.9,0.61372]
[1737651233364,0.00460773,3258.2,3257.6,0.00460773]
[1737651233555,0.00460773,3258.2,3258.1,0.61369]
[1737651233954,0.00460773,3258.2,3258.0,0.61371]
[1737651234260,0.00460773,3258.2,3258.1,0.61369]
[1737651234460,0.61829773,3258.2,3257.9,3.82153]
[1737651234660,0.00460773,3258.2,3257.9,3.2078]
[1737651235159,0.00460773,3258.2,3258.0,0.61371]
[1737651235559,0.00460773,3258.2,3257.9,3.2078]
[1737651235858,0.00460773,3258.2,3258.1,0.61369]
[1737651239259,0.00460773,3258.2,3258.0,0.6137]
[1737651240165,0.00460773,3258.2,3257.6,6.10647478]
[1737651240363,3.21240773,3258.2,3257.6,0.00460773]
[1737651240667,0.61377,3257.7,3257.6,0.00460773]
[1737651241263,2.0845,3258.1,3257.6,0.00460773]
[1737651241264,1.0391,3258.1,3258.0,0.61371]
[1737651241559,0.00460773,3258.2,3258.1,0.61369]
[1737651241766,0.00460773,3258.2,3258.1,1.71209]
[1737651242262,0.00460773,3258.2,3258.1,0.61369]
[1737651248071,0.61369,3258.1,3258.0,3.2078]
[1737651248470,0.61369,3258.1,3257.6,0.00460773]
[1737651248471,0.61377,3257.7,3257.6,0.61838773]
[1737651248775,0.61377,3257.7,3257.6,0.00460773]
[1737651249073,0.28783304,3258.0,3257.6,0.00460773]
[1737651249276,0.90154304,3258.0,3257.8,0.61373]
[1737651249677,4.2822,3258.1,3257.6,0.00460773]
[1737651249875,4.2822,3258.1,3258.0,0.61371]
[1737651250169,4.8959,3258.1,3258.0,0.61371]
[1737651250375,5.18372266,3258.1,3258.0,0.61371]
[1737651250578,4.57002266,3258.1,3258.0,0.61371]
[1737651250774,0.28782266,3258.1,3258.0,0.61371]
[1737651250973,0.00460773,3258.2,3258.1,0.61369]
[1737651251972,0.00460773,3258.2,3258.1,3.82149]
[1737651252172,0.28776451,3258.9,3258.8,0.61356]
[1737651252576,7.10801287,3259.3,3259.2,0.61349]
[1737651252969,7.10801287,3259.3,3258.8,3.1953]
[1737651253182,7.10801287,3259.3,3259.2,0.61349]
[1737651253881,7.10801287,3259.3,3258.8,3.1953]
[1737651254067,7.10801287,3259.3,3258.8,1.72406]
[1737651254370,7.10801287,3259.3,3259.0,0.61351]
[1737651254567,7.10801287,3259.3,3258.9,0.61354]
[1737651254568,0.28771937,3259.2,3258.9,0.61354]
[1737651254778,0.28771937,3259.2,3258.8,1.1105]
[1737651254977,3.82123,3259.6,3259.0,0.61351]
[1737651255177,0.28771365,3259.5,3259.2,0.61348]
[1737651255382,0.28770924,3259.5,3259.3,0.61346]
[1737651255577,0.28770924,3259.5,3258.9,3.2078]
[1737651255774,3.2078,3259.6,3259.0,1.53382]
[1737651255980,3.2078,3259.6,3259.4,0.61344]
[1737651256280,3.2078,3259.6,3258.9,5.3714]
[1737651256483,7.10801287,3259.9,3259.3,3.2078]
[1737651256779,7.10801287,3259.9,3258.9,5.3714]
[1737651256985,7.10801287,3259.9,3259.3,0.00460773]
[1737651257184,0.2876748,3259.8,3259.3,0.00460773]
[1737651257480,3.2078,3259.6,3259.3,0.00460773]
[1737651257679,0.2876748,3259.5,3259.3,0.00460773]
[1737651257885,1.18879455,3259.5,3259.3,0.00460773]
[1737651258080,0.57535455,3259.5,3259.3,0.00460773]
[1737651258275,1.18879455,3259.5,3259.3,0.00460773]
[1737651258584,0.61345,3259.4,3259.3,0.00460773]
[1737651258978,1.18879455,3259.5,3259.3,0.00460773]
[1737651259182,0.57535455,3259.5,3259.3,0.00460773]
[1737651259580,0.28767975,3259.5,3259.4,0.61345]
[1737651259880,7.10801287,3259.8,3259.7,0.61339]
[1737651260281,7.10801287,3259.8,3259.7,3.82119]
[1737651260488,7.10801287,3259.8,3259.7,1.66029]
[1737651260673,7.10801287,3259.8,3259.7,4.86809]
[1737651260878,7.10801287,3259.8,3259.7,1.66029]
[1737651261881,7.10801287,3259.8,3259.4,0.61344]
[1737651262088,0.6134,3259.7,3259.5,0.61343]
[1737651262290,3.2078,3259.7,3259.3,0.00460773]
[1737651262484,7.10801287,3259.8,3259.7,0.61339]
[1737651262788,7.10801287,3259.8,3259.6,0.61341]
[1737651262979,7.10801287,3259.8,3259.3,0.00460773]
[1737651263384,7.72139287,3259.8,3259.3,0.00460773]
[1737651263581,0.6134,3259.7,3259.5,0.61341]
[1737651263883,10.52048608,3260.0,3259.3,0.00460773]
[1737651263884,2.2129,3260.0,3259.3,0.00460773]
[1737651264082,3.2078,3259.6,3259.3,0.00460773]
[1737651264281,0.61345,3259.4,3259.3,0.00460773]
[1737651264483,0.28772562,3259.5,3258.5,1.0529]
[1737651264484,4.27705727,3259.5,3258.5,1.0529]
[1737651264684,3.2078,3258.9,3258.5,1.0529]
[1737651264885,4.56474168,3259.4,3258.5,1.0529]
[1737651264886,7.48481606,3259.4,3258.5,1.0529]
[1737651265191,0.57541276,3259.3,3258.8,0.61355]
[1737651265386,0.61352,3259.1,3258.8,0.61355]
[1737651265582,0.61352,3259.1,3258.8,0.61356]
[1737651265782,0.61353,3259.0,3258.8,0.61356]
[1737651265983,0.61352,3259.1,3258.8,0.61356]
[1737651266283,0.61352,3259.1,3258.7,0.00460773]
[1737651266587,0.57539995,3259.3,3258.7,0.00460773]
[1737651266779,0.61354,3258.9,3258.7,0.61817773]
[1737651267176,0.57539995,3259.3,3258.7,0.00460773]
[1737651267386,0.61356,3258.8,3258.7,0.00460773]
[1737651268183,0.28768441,3258.9,3258.8,0.61356]
[1737651268684,3.82134,3259.0,3258.8,0.61356]
[1737651269185,0.61356,3258.8,3258.7,0.00460773]
[1737651270389,0.61356,3258.8,3258.7,0.61818773]
[1737651270591,0.61356,3258.8,3258.7,0.00460773]
[1737651270788,0.28775648,3258.9,3258.8,0.61356]
[1737651271390,0.61355,3258.9,3258.8,0.61356]
[1737651271578,3.2078,3259.0,3258.9,0.61354]
[1737651272180,3.2078,3259.0,3258.7,0.00460773]
[1737651272494,0.61356,3258.8,3258.7,0.00460773]
[1737651273193,0.61356,3258.8,3258.7,0.61818773]
[1737651273400,0.61356,3258.8,3258.7,0.00460773]
[1737651273888,0.61356,3258.8,3258.7,0.61818773]
[1737651274192,7.41141955,3258.9,3258.8,0.61356]
[1737651274386,7.41141955,3258.9,3258.8,3.50762705]
[1737651274582,3.92461407,3258.9,3258.8,9.57322705]
[1737651274785,3.92461407,3258.9,3258.8,6.79762705]
[1737651274986,3.92461407,3258.9,3258.8,4.57322705]
[1737651276782,0.00460773,3259.4,3258.8,3.95966705]
[1737651276985,0.61805773,3259.4,3259.3,0.61347]
[1737651277194,0.61805773,3259.4,3258.8,5.49353705]
[1737651277195,0.00460773,3259.4,3258.8,3.95966705]
[1737651277388,0.61347,3259.3,3258.8,3.95966705]
[1737651277694,0.00460773,3259.4,3258.8,3.95966705]
[1737651277889,3.2078,3259.2,3258.8,2.89406705]
[1737651278095,3.2078,3259.2,3258.7,0.00460773]
[1737651278394,0.61354,3258.9,3258.8,0.61356]
[1737651278594,0.61356,3258.8,3258.7,0.61817773]
[1737651278892,3.82136,3258.8,3258.7,0.00460773]
[1737651280195,3.82136,3258.8,3258.7,0.61818773]
[1737651280789,3.2078,3258.8,3258.7,0.61818773]
[1737651281891,1.0642,3259.0,3258.9,0.61354]
[1737651282496,1.67773,3259.0,3258.9,0.61354]
[1737651282709,1.0642,3259.0,3258.9,0.61354]
[1737651283090,1.67773,3259.0,3258.9,0.61354]
[1737651283290,1.67773,3259.0,3258.7,0.00460773]
[1737651283589,1.67773,3259.0,3258.9,0.61354]
[1737651283792,1.0642,3259.0,3258.7,0.00460773]
[1737651283993,0.61356,3258.8,3258.7,0.00460773]
[1737651284498,4.272,3259.0,3258.7,0.61817773]
[1737651284702,0.61356,3258.8,3258.7,0.61817773]
[1737651285598,0.28773819,3258.9,3258.7,0.00460773]
[1737651285895,0.61356,3258.8,3258.7,0.00460773]
[1737651286200,3.98615012,3258.8,3257.8,2.1515]
[1737651286499,3.2078,3258.5,3258.4,0.61364]
[1737651286891,0.61361,3258.6,3258.0,2.89406705]
[1737651287089,0.61362,3258.5,3258.3,0.61364]
[1737651287298,1.1632,3258.7,3258.1,3.2078]
[1737651287487,1.1632,3258.7,3258.3,0.61365]
[1737651287685,0.61363,3258.5,3258.3,0.61365]
[1737651287997,0.5755038,3258.8,3258.1,3.2078]
[1737651288192,1.1890738,3258.8,3258.6,0.61359]
[1737651288596,0.5755038,3258.8,3258.0,4.43292478]
[1737651288795,0.5755038,3258.8,3258.5,0.61361]
[1737651288996,0.5755038,3258.8,3258.0,4.43292478]
[1737651289199,0.5755038,3258.8,3258.5,0.61361]
[1737651289200,0.6136,3258.7,3258.5,0.61361]
[1737651289395,0.5755038,3258.8,3258.1,1.53425]
[1737651289601,0.5755038,3258.8,3258.0,2.89867478]
[1737651289801,0.61365,3258.4,3258.2,0.61366]
[1737651290194,0.5755038,3258.8,3258.3,2.38806922]
[1737651290388,0.5755038,3258.8,3258.0,3.21240773]
[1737651290389,0.5755038,3258.8,3258.6,2.38806922]
[1737651290700,8.598678,3258.8,3258.7,0.61358]
[1737651291094,8.31093981,3258.8,3258.7,0.61358]
[1737651291490,8.31093981,3258.8,3258.6,0.6136]
[1737651291491,0.61358,3258.7,3258.6,0.6136]
[1737651291690,0.61363,3258.5,3258.3,2.38806922]
[1737651291893,0.61363,3258.5,3258.4,0.61364]
[1737651292297,0.57553637,3258.7,3258.3,2.38806922]
[1737651292492,0.57553637,3258.7,3258.6,0.6136]
[1737651292692,1.18915281,3258.7,3258.3,2.38806922]
[1737651292892,0.6136,3258.6,3258.3,2.38806922]
[1737651293095,0.6136,3258.6,3258.5,0.61361]
[1737651293496,0.61364,3258.4,3258.3,2.38806922]
[1737651293699,0.61361,3258.6,3258.5,0.61362]
[1737651293899,0.6136,3258.6,3258.4,0.61363]
[1737651294102,0.57554333,3258.7,3258.4,0.61363]
[1737651294404,0.57554333,3258.7,3258.3,2.38806922]
[1737651294599,0.57554333,3258.7,3258.4,0.61364]
[1737651294600,1.18914333,3258.7,3258.4,0.61364]
[1737651294806,1.18913333,3258.7,3258.6,0.6136]
[1737651295101,0.57554333,3258.7,3258.6,3.00166922]
[1737651295295,0.28778333,3258.7,3258.6,3.00166922]
[1737651295502,8.31093981,3258.8,3258.7,0.61358]
[1737651295704,8.59868017,3258.8,3258.7,0.61358]
[1737651295903,0.61358,3258.7,3258.6,0.61359]
[1737651296103,0.6136,3258.6,3258.5,0.61362]
[1737651296297,0.57548316,3258.8,3258.3,2.38806922]
[1737651296704,0.57548316,3258.8,3258.7,0.61358]
[1737651296904,0.2877428,3258.8,3258.7,0.61358]
[1737651297406,0.57548316,3258.9,3258.6,2.38806922]
[1737651297606,0.57548316,3258.9,3258.8,0.61356]
[1737651298009,1.18902316,3258.9,3258.8,0.61356]
[1737651298208,0.57548316,3258.9,3258.8,0.61356]
[1737651299309,0.2877428,3258.9,3258.8,0.61356]
[1737651299607,0.57548316,3259.0,3258.9,0.61354]
[1737651299909,0.57548316,3259.0,3258.9,3.00160922]
[1737651300404,0.2877428,3259.0,3258.9,3.00160922]
[1737651301108,4.81981734,3259.1,3259.0,0.61353]
[1737651301306,9.49821693,3259.8,3259.0,0.61353]
[1737651301307,9.49821693,3259.8,3259.7,0.61339]
[1737651301604,8.49528497,3259.8,3259.7,6.20925922]
[1737651302706,10.69010177,3260.1,3260.0,0.61334]
[1737651303104,10.69010177,3260.1,3260.0,3.00140922]
[1737651303304,3.82085,3261.6,3260.0,9.77613844]
[1737651303508,1.0783,3261.8,3261.2,3.00117922]
[1737651303913,3.2078,3261.7,3260.9,2.38806922]
[1737651304107,0.61313,3261.1,3260.9,2.38806922]
[1737651304310,0.61319,3260.9,3260.6,3.00128922]
[1737651304607,0.61313,3261.1,3260.8,0.61318]
[1737651304811,1.1626,3261.2,3260.6,2.38806922]
[1737651305111,1.1626,3261.2,3260.9,3.00121922]
[1737651305302,1.77571,3261.2,3260.9,3.00121922]
[1737651305607,3.2078,3261.7,3260.9,2.38806922]
[1737651305914,3.2078,3261.7,3261.3,0.61309]
[1737651306213,3.2078,3261.7,3261.6,2.38806922]
[1737651306412,1.1199,3262.1,3261.6,2.38806922]
[1737651306413,4.3277,3262.1,3261.6,2.38806922]
[1737651306705,4.3782,3262.5,3262.0,3.00102922]
[1737651306911,4.3782,3262.5,3262.0,2.38806922]
[1737651307110,0.61292,3262.2,3262.0,2.38806922]
[1737651307312,4.3782,3262.5,3262.0,3.00101922]
[1737651307512,4.3782,3262.5,3262.0,2.38806922]
[1737651307704,4.3782,3262.5,3261.6,1.1167]
[1737651307907,0.613,3261.9,3261.5,0.61764059]
[1737651308105,0.61298,3262.0,3261.5,0.00460059]
[1737651308307,0.61299,3261.9,3261.6,0.61302]
[1737651308561,0.61299,3261.9,3261.5,0.00460059]
[1737651308752,3.82076,3262.1,3261.6,0.61304]
[1737651309020,3.2078,3262.1,3261.5,0.00460059]
[1737651309215,3.82075,3262.1,3261.6,0.61304]
[1737651309414,3.2078,3262.1,3261.5,0.00460059]
[1737651309607,3.2078,3262.1,3261.5,2.89264279]
[1737651309910,0.61296,3262.0,3261.6,0.61303]
[1737651310107,0.61296,3262.0,3261.5,0.00460059]
[1737651310108,0.61296,3262.0,3261.5,0.61764059]
[1737651310304,0.61299,3261.9,3261.5,0.61765059]
[1737651310610,3.2078,3262.1,3261.5,2.89264279]
[1737651310812,0.61297,3262.0,3261.6,0.61303]
[1737651311010,1.1199,3262.3,3261.9,2.8880422]
[1737651311208,1.1199,3262.3,3261.7,3.2078]
[1737651311209,0.61291,3262.3,3261.7,3.2078]
[1737651311405,4.3782,3262.5,3261.7,3.2078]
[1737651311613,4.3782,3262.5,3261.6,1.0702]
[1737651311911,4.3782,3262.5,3262.1,0.61293]
[1737651312113,4.3782,3262.5,3261.9,2.8880422]
[1737651312726,4.99108,3262.5,3262.0,0.61295]
[1737651312913,3.2078,3262.5,3262.1,0.61293]
[1737651313211,3.2078,3262.5,3261.9,2.8880422]
[1737651313212,3.2078,3262.5,3262.0,0.61295]
[1737651313419,3.2078,3262.5,3261.7,3.2078]
[1737651313612,3.2078,3262.5,3261.7,3.82081]
[1737651313812,3.2078,3262.5,3261.7,3.2078]
[1737651314014,3.2078,3262.1,3261.5,0.00460059]
[1737651314215,0.61304,3261.6,3261.5,0.00460059]
[1737651316516,0.61304,3261.6,3260.3,2.8880422]
[1737651316517,0.61315,3261.0,3260.8,0.61317]
[1737651317016,3.2078,3261.3,3260.4,1.089]
[1737651317219,0.61305,3261.6,3261.3,0.61308]
[1737651317520,2.1667,3262.0,3261.1,2.89264279]
[1737651317521,0.6131,3261.3,3261.1,2.89264279]
[1737651317726,3.2078,3261.4,3261.1,0.00460059]
[1737651318024,3.21238153,3261.8,3261.2,0.6131]
[1737651318225,0.61307,3261.5,3261.2,0.6131]
[1737651318615,0.6131,3261.3,3261.1,0.61772059]
[1737651318924,0.61311,3261.2,3261.1,0.00460059]
[1737651319612,0.61311,3261.2,3260.2,1.1353]
[1737651319613,8.91258241,3261.2,3260.2,1.1353]
[1737651319926,0.61331,3260.2,3260.0,0.61333]
[1737651320118,0.61326,3260.4,3259.9,3.9595422]
[1737651320425,3.82105,3260.5,3260.2,0.61328]
[1737651320817,3.82105,3260.5,3259.9,3.9595422]
[1737651321017,3.82105,3260.5,3260.3,0.61328]
[1737651321412,3.2078,3260.5,3260.3,0.61328]
[1737651321616,3.82105,3260.5,3260.3,0.61328]
[1737651322125,3.2078,3260.5,3260.0,0.00460059]
[1737651322423,2.2053,3261.3,3260.3,2.8880422]
[1737651322620,0.61314,3261.1,3260.8,0.61317]
[1737651322814,0.61314,3261.1,3260.7,2.8880422]
[1737651322815,0.61312,3261.2,3260.7,2.8880422]
[1737651323124,2.2053,3261.3,3260.7,2.8880422]
[1737651323524,0.61314,3261.1,3260.8,0.61317]
[1737651323825,0.61314,3261.1,3260.9,0.61317]
[1737651324317,0.61312,3261.2,3261.0,0.61314]
[1737651324524,0.61312,3261.2,3261.0,0.61315]
[1737651324714,2.2053,3261.3,3260.7,2.8880422]
[1737651324913,0.61308,3261.4,3261.1,0.61311]
[1737651325118,0.61307,3261.5,3260.7,6.0958422]
[1737651325318,0.61307,3261.5,3261.3,0.61309]
[1737651325519,0.61308,3261.4,3261.2,0.6131]
[1737651325924,0.6131,3261.3,3261.1,0.61312]
[1737651326121,0.6131,3261.3,3260.7,7.2371422]
[1737651326122,3.2078,3261.3,3260.7,3.2078]
[1737651326323,0.61315,3261.0,3260.7,3.82099]
[1737651326525,0.61315,3261.0,3260.7,3.2078]
[1737651327029,0.61317,3260.9,3260.7,3.2078]
[1737651327230,0.61315,3261.0,3260.8,0.61318]
[1737651327426,2.2331,3261.2,3260.7,3.2078]
[1737651327734,0.61319,3260.8,3260.4,1.67925]
[1737651327923,3.2078,3260.9,3260.1,3.2078]
[1737651328425,1.53298,3260.8,3260.1,3.2078]
[1737651328921,1.53298,3260.8,3260.1,3.82111]
[1737651329123,0.61329,3260.3,3260.1,3.82111]
[1737651329323,0.6133,3260.2,3260.1,3.82111]
[1737651329531,0.61329,3260.3,3260.1,3.82111]
[1737651330232,0.61327,3260.4,3260.2,0.61329]
[1737651330728,0.61329,3260.3,3260.2,0.6133]
[1737651330930,0.6133,3260.2,3260.1,3.2078]
[1737651331127,0.61329,3260.3,3260.1,3.2078]
[1737651331423,0.61325,3260.5,3260.3,0.61328]
[1737651331619,3.2078,3260.9,3260.1,3.2078]
[1737651331816,0.61326,3260.4,3260.2,0.61329]
[1737651332223,0.61327,3260.4,3260.2,0.6133]
[1737651332532,1.53297,3260.8,3260.1,3.2078]
[1737651332830,3.2078,3260.9,3260.3,0.61328]
[1737651333129,0.61327,3260.4,3260.2,0.61329]
[1737651333320,0.61327,3260.4,3260.1,3.2078]
[1737651333321,3.2078,3260.9,3260.1,3.2078]
[1737651333522,0.61325,3260.5,3260.3,0.61327]
[1737651333823,3.2078,3260.9,3260.2,2.38487577]
[1737651334027,0.61325,3260.5,3260.3,0.61327]
[1737651334228,3.2078,3260.9,3260.2,2.38487577]
[1737651334533,0.61316,3261.0,3260.8,0.61319]
[1737651334832,3.2078,3261.0,3260.2,43.18487577]
[1737651335130,2.2331,3261.2,3260.0,0.00460059]
[1737651335131,0.61332,3260.1,3260.0,0.00460059]
[1737651335723,3.82112,3260.1,3260.0,0.00460059]
[1737651335934,8.2078,3260.1,3259.0,19.09818577]
[1737651336129,0.61351,3259.1,3259.0,3.2078]
[1737651336427,3.2078,3259.5,3258.7,3.47667577]
[1737651336628,3.2078,3259.5,3259.0,2.99839577]
[1737651336629,2.1921,3259.4,3259.0,2.99839577]
[1737651336835,0.61351,3259.1,3259.0,2.38487577]
[1737651337333,0.61351,3259.1,3258.8,0.61355]
[1737651337531,3.2078,3259.1,3258.7,0.00460059]
[1737651337831,0.61356,3258.8,3258.7,0.00460059]
[1737651338129,3.95880051,3258.8,3258.7,0.00460059]
[1737651338333,3.95880051,3258.8,3258.7,0.61818059]
[1737651338524,2.19670059,3259.4,3258.7,0.00460059]
[1737651338929,0.00460059,3259.4,3258.9,0.61354]
[1737651339132,0.00460059,3259.4,3259.2,0.61349]
[1737651339526,0.00460059,3259.4,3258.9,1.1596]
[1737651339728,0.00460059,3259.4,3259.3,0.61347]
[1737651340036,0.00460059,3259.4,3259.2,0.61348]
[1737651340635,0.00460059,3259.4,3258.9,1.1596]
[1737651340834,0.61806059,3259.4,3259.1,0.6135]
[1737651341034,0.61348,3259.3,3259.0,0.61352]
[1737651341422,0.61348,3259.3,3258.9,1.1596]
[1737651341628,0.61348,3259.3,3259.0,0.61351]
[1737651341827,0.00460059,3259.4,3259.2,0.61348]
[1737651342034,0.00460059,3259.4,3259.3,0.61347]
[1737651343734,0.00460059,3259.4,3259.3,41.41347]
[1737651345039,0.00460059,3259.4,3259.3,42.58617]
[1737651345241,0.00460059,3259.4,3259.3,1.78617]
[1737651345440,0.00460059,3259.4,3259.3,4.68076576]
[1737651345743,3.2078,3260.2,3260.1,0.61332]
[1737651345939,3.2078,3260.2,3260.0,0.61333]
[1737651346336,0.6133,3260.2,3260.0,0.61333]
[1737651347337,0.00460059,3260.4,3260.3,0.61328]
[1737651348537,3.2078,3261.5,3260.4,2.1464]
[1737651348839,0.61313,3261.2,3261.0,0.61315]
[1737651349241,4.3222,3261.5,3261.0,0.61315]
[1737651349441,0.61308,3261.4,3261.2,0.61311]
[1737651349742,4.3222,3261.5,3260.9,0.00460059]
[1737651349939,0.61308,3261.4,3261.2,0.6131]
[1737651350253,4.3222,3261.5,3261.0,0.61315]
[1737651350443,1.1144,3261.5,3261.3,0.61308]
[1737651350944,1.1144,3261.5,3260.9,0.00460059]
[1737651351140,0.00458153,3261.6,3260.9,0.00460059]
[1737651351442,0.00458153,3261.6,3261.5,0.61306]
[1737651352337,0.00458153,3261.6,3261.5,1.71046]
[1737651353748,0.00458153,3261.6,3261.5,0.61306]
[1737651354357,2.2277,3262.7,3261.5,5.0]
[1737651354549,2.2277,3262.7,3261.4,3.2078]
[1737651354550,0.61286,3262.6,3261.4,3.2078]
[1737651354850,2.2277,3262.7,3261.8,0.61299]
[1737651355145,0.61292,3262.3,3261.8,0.61299]
[1737651355350,0.61292,3262.3,3261.8,0.61298]
[1737651355942,3.2078,3262.4,3261.4,3.2078]
[1737651356144,0.613,3261.8,3261.4,3.82086]
[1737651356446,0.61297,3262.0,3261.6,0.61303]
[1737651356753,3.2078,3262.4,3261.5,0.61305]
[1737651356754,0.61298,3261.9,3261.5,0.61305]
[1737651357142,0.61298,3261.9,3261.4,3.2078]
[1737651357449,3.2078,3262.0,3261.4,3.2078]
[1737651357753,0.61305,3261.6,3261.1,0.61312]
[1737651357943,0.61309,3261.4,3261.0,0.61313]
[1737651358945,0.61312,3261.2,3260.9,2.38828458]
[1737651359245,0.61307,3261.4,3260.9,3.00143458]
[1737651359544,1.1283,3261.8,3261.2,2.38368399]
[1737651359943,1.1283,3261.8,3261.7,0.61302]
[1737651360144,1.1372,3261.9,3261.5,2.38368399]
[1737651360845,0.61303,3261.7,3261.4,0.61307]
[1737651361045,0.61301,3261.8,3261.6,0.61304]
[1737651361240,0.61301,3261.8,3261.3,0.61309]
[1737651361547,0.61301,3261.8,3261.5,0.61305]
[1737651362045,0.61301,3261.8,3261.2,4.03949622]
[1737651362245,0.61299,3261.9,3261.6,0.61303]
[1737651362440,3.2078,3262.0,3261.2,4.03949622]
[1737651362646,0.61298,3261.9,3261.6,0.61302]
[1737651362846,0.61298,3261.9,3261.2,4.03949622]
[1737651363353,0.61302,3261.7,3261.2,4.03949622]
[1737651363553,0.61301,3261.8,3261.5,0.61305]
[1737651363855,0.61302,3261.7,3261.5,0.61305]
[1737651364246,3.2078,3262.0,3261.2,4.03949622]
[1737651364446,1.18,3262.4,3261.2,4.03949622]
[1737651364447,0.61301,3261.8,3261.6,0.61303]
[1737651364643,3.2078,3262.0,3261.6,3.50092622]
[1737651364845,0.61299,3261.9,3261.7,0.61301]
[1737651365043,0.61299,3261.9,3261.6,0.61302]
[1737651365255,3.2078,3262.0,3261.1,3.2078]
[1737651365449,3.2078,3261.5,3261.1,3.2078]
[1737651365651,0.6131,3261.3,3261.1,3.82092]
[1737651365854,0.61311,3261.2,3261.1,3.2078]
[1737651366656,0.61315,3261.0,3260.9,0.00460059]
[1737651367654,1.70755,3261.0,3260.9,0.00460059]
[1737651368351,1.70755,3261.0,3259.6,2.88789622]
[1737651368352,10.08007456,3261.0,3259.6,2.88789622]
[1737651368555,3.2078,3260.8,3260.0,6.09569622]
[1737651368859,0.61317,3260.9,3260.7,0.6132]
[1737651369154,3.2078,3261.2,3260.4,2.88789622]
[1737651369351,0.61321,3260.7,3260.5,0.61323]
[1737651369655,0.61318,3260.9,3260.7,0.61319]
[1737651369856,0.00460059,3261.1,3260.5,0.00460059]
[1737651370049,0.61318,3260.9,3260.7,0.6132]
[1737651370357,0.61315,3261.0,3260.6,0.61322]
[1737651370549,0.61315,3261.0,3260.8,0.61318]
[1737651370855,0.00460059,3261.1,3261.0,0.61315]
[1737651372652,0.61297,3262.0,3261.8,0.61299]
[1737651372851,1.0866,3262.1,3261.8,0.61299]
[1737651373158,1.0866,3262.1,3261.5,2.88789622]
[1737651373361,1.69955,3262.1,3261.8,0.61299]
[1737651373551,1.0866,3262.1,3261.9,0.61296]
[1737651373746,1.0866,3262.1,3261.4,44.0078]
[1737651374054,0.61299,3261.9,3261.6,0.61303]
[1737651374252,4.2944,3262.1,3261.4,3.2078]
[1737651374455,0.61306,3261.5,3261.4,3.2078]
[1737651374856,0.61322,3260.6,3260.5,0.00460059]
[1737651375547,2.79322,3260.6,3260.5,0.00460059]
[1737651377153,2.18,3260.6,3260.5,0.00460059]
[1737651377355,2.79322,3260.6,3260.5,0.00460059]
[1737651378455,0.61333,3260.1,3259.8,0.61336]
[1737651378756,6.07603896,3260.6,3259.8,0.61336]
[1737651378757,0.61334,3260.0,3259.8,0.61336]
[1737651379149,7.19333896,3260.6,3259.6,3.2078]
[1737651379355,0.61331,3260.2,3259.9,0.61335]
[1737651379555,0.61332,3260.1,3259.9,0.61335]
[1737651379762,0.00460059,3260.4,3260.0,0.61333]
[1737651379763,0.6133,3260.3,3260.0,0.61333]
[1737651379959,0.61333,3260.1,3259.8,0.61796059]
[1737651380271,0.61328,3260.3,3260.0,0.61333]
[1737651380662,0.61328,3260.3,3259.8,0.00460059]
[1737651380863,0.61328,3260.3,3260.1,0.61331]
[1737651381158,0.00460059,3260.4,3259.8,0.00460059]
[1737651381460,0.00460059,3260.4,3260.3,0.61328]
[1737651382257,0.00460059,3260.4,3260.1,2.0896]
[1737651382560,0.00460059,3260.4,3260.3,0.61328]
[1737651383464,0.61332,3260.1,3259.8,0.61797059]